Workbook

Sheet Anykščiai
A1: VĮ Valstybinių miškų urėdijos Anykščių regioninio padalinio informacija apie perkamus rangos paslaugų kiekius 2025 metams
A2: Eil. | B2: Paslaugų grupės ir paslaugų pavadinimai | D2: Preliminarios paslaugų apimtys
A3: 1 | B3: Želdaviečių paruošimas miškų sodinimui, želdinių ir žėlinių priežiūra, jaunuolynų ugdymas, griovių šlaitų ir pagriovių, pakelių, kvartalinių ir ribinių linijų priežiūra | C3: Mato vnt. | D3: Kavarsko girininkija 1 | E3: Mickūnų girininkija 1 | F3: Troškūnų girininkija 1
A4: Pirkimo objekto dalies numeris | D4: 1 | E4: 2 | F4: 3
A5: 1. | B5: Želdavietės paruošimas miško sodmenų sodinimui šalinant nepageidaujamus medžius, krūmus, žolinę augmeniją | C5: ha
A6: 2. | B6: Medynų ir krūmynų pertvarkymo kirtimai šalinant nepageidaujamus medžius, krūmus, žolinę augmeniją | C6: ha
A7: 3. | B7: Miško želdinių ir žėlinių priežiūra šalinant žabus ir žolinę augmeniją | C7: ha | D7: 35 | F7: 40
A8: 4. | B8: Jaunuolynų ugdymas ir/ar retinimo kirtimai, negaminant likvidinės medienos | C8: ha | E8: 16
A9: 5. | B9: Griovių šlaitų ir pagriovių priežiūra | C9: ha
A10: 6. | B10: Pakelių priežiūra | C10: km
A11: 7. | B11: kvartalinių ir ribinių linijų priežūra | C11: km
D12: =+D5*301+D7*263+D8*299+D9*301+D10*53+D11*126+D6*301 -> 9205 | E12: =+E5*301+E7*263+E8*299+E9*301+E10*53+E11*126+E6*301 -> 4784 | F12: 10520
D13: =+D12*3*1.3 -> 35899.5 | E13: =+E12*3*1.3 -> 18657.6 | F13: 41028
A15: 3. | B15: Miško sodmenų sodinimas, želdinių ir žėlinių medelių ir jų liemenų apsauga nuo kanopinių žvėrių bei vabzdžių daromos žalos | C15: Mato vnt. | D15: Preliminarios paslaugų apimtys
D16: Kuktiškių girininkija 1 | E16: Kuktiškių girininkija 2 | F16: Troškūnų girininkija 2 | G16: Mickūnų girininkija 2 | H16: Kavarsko girininkija 2 | I16: Vyžuonų girininkija 1 | J16: Vyžuonų girininkija 2 | K16: Kuktiškių girininkija 3 | L16: Kuktiškių girininkija 4 | M16: Dubingių girininkija
B17: Pirkimo objekto numeris | D17: 4 | E17: 5 | F17: 6 | G17: 7 | H17: 8 | I17: 9 | J17: 10 | K17: 11 | L17: 12 | M17: 13
A18: 8. | B18: Miško atkūrimas, įveisimas ir atsodinimas (medelių ir krūmų sodinimas) | C18: tūkst. vnt. | D18: 35 | E18: 35
A19: 9. | B19: Želdinių, žėlinių apsauga nuo kanopinių žvėrių bei vabzdžių daromos žalos | C19: tūkst. vnt. | F19: 28 | G19: 96 | H19: 61 | I19: 100 | J19: 96 | K19: 64 | L19: 64 | M19: 85.7
A20: 10. | B20: Želdinių, žėlinių ir medelių kamienų apsauga nuo kanopinių žvėrių daromos žalos | C20: tūkst. vnt. | H20: 1 | I20: 4.5 | J20: 4.5 | K20: 4.2 | L20: 4.2 | M20: 6.2
D21: =+D18*178+D19*27+D20*390 -> 6230 | E21: =+E18*178+E19*27+E20*390 -> 6230 | F21: 756 | G21: 2592 | H21: 2037 | I21: 4455 | J21: 4347 | K21: 3366 | L21: 3366 | M21: 4731.9
D22: =+D21*3*1.3 -> 24297 | E22: =+E21*3*1.3 -> 24297 | F22: 2948.4 | G22: 10108.8 | H22: 7944.3 | I22: 17374.5 | J22: 16953.3 | K22: 13127.4 | L22: 13127.4 | M22: 18454.41
A24: 6. | B24: Šiukšlių rinkimo paslaugos | C24: Preliminarios paslaugų apimtys
C25: Mato vnt. | D25: Anykščių RP teritorija
A26: Pirkimo objekto dalies numeris | D26: 14
A27: 12. | B27: Šiukšlių rinkimo paslaugos | C27: val. | D27: 350
D28: =+D27*10 -> 3500
D29: =+D28*3*1.3 -> 13650

Sheet Biržai
A1: VĮ Valstybinių miškų urėdijos Biržų regioninio padalinio informacija apie perkamus rangos paslaugų kiekius 2025 metams
A2: Eil. | B2: Paslaugų grupės ir paslaugų pavadinimai | D2: Preliminarios paslaugų apimtys
A3: 1 | B3: Želdaviečių paruošimas miškų sodinimui, želdinių ir žėlinių priežiūra, jaunuolynų ugdymas, griovių šlaitų ir pagriovių, pakelių, kvartalinių ir ribinių linijų priežiūra | C3: Mato vnt. | D3: Linkuvos girininkija 1 | E3: Pasvalio girininkija | F3: Kriklinių girininkija | G3: Latvelių girininkija 1 | H3: Spalviškių girininkija 1 | I3: Būginių girininkija 1 | J3: Visa RP teritorija
A4: Pirkimo objekto dalies numeris | D4: 15 | E4: 16 | F4: 17 | G4: 18 | H4: 19 | I4: 20 | J4: 21
A5: 1. | B5: Želdavietės paruošimas miško sodmenų sodinimui šalinant nepageidaujamus medžius, krūmus, žolinę augmeniją | C5: ha | D5: 0 | E5: 0 | F5: 0 | G5: 0 | H5: 0 | I5: 0 | J5: 0
A6: 2. | B6: Medynų ir krūmynų pertvarkymo kirtimai šalinant nepageidaujamus medžius, krūmus, žolinę augmeniją | D6: 0 | E6: 0 | F6: 0 | G6: 0 | H6: 0 | I6: 0 | J6: 7
A7: 3. | B7: Miško želdinių ir žėlinių priežiūra šalinant žabus ir žolinę augmeniją | C7: ha | D7: 75 | E7: 55 | F7: 15 | G7: 30 | H7: 15 | I7: 15 | J7: 0
A8: 4. | B8: Jaunuolynų ugdymas ir/ar retinimo kirtimai, negaminant likvidinės medienos | C8: ha | D8: 50 | E8: 35 | F8: 10 | G8: 20 | H8: 10 | I8: 10 | J8: 0
A9: 5. | B9: Griovių šlaitų ir pagriovių priežiūra | C9: ha | D9: 0 | E9: 0 | F9: 0 | G9: 0 | H9: 0 | I9: 0 | J9: 0
A10: 6. | B10: Pakelių priežiūra | C10: km | D10: 0 | E10: 0 | F10: 0 | G10: 0 | H10: 0 | I10: 0 | J10: 0
A11: 7. | B11: kvartalinių ir ribinių linijų priežūra | C11: km | D11: 10 | E11: 10 | F11: 5 | G11: 5 | H11: 5 | I11: 5 | J11: 0
D12: =+D5*301+D7*263+D8*299+D9*301+D10*53+D11*126+D6*301 -> 35935 | E12: =+E5*301+E7*263+E8*299+E9*301+E10*53+E11*126+E6*301 -> 26190 | F12: 7565 | G12: 14500 | H12: 7565 | I12: 7565 | J12: 2107
D13: =+D12*3*1.3 -> 140146.5 | E13: =+E12*3*1.3 -> 102141 | F13: 29503.5 | G13: 56550 | H13: 29503.5 | I13: 29503.5 | J13: 8217.3
A15: 3. | B15: Miško sodmenų sodinimas, želdinių ir žėlinių medelių ir jų liemenų apsauga nuo kanopinių žvėrių bei vabzdžių daromos žalos | C15: Mato vnt. | D15: Preliminarios paslaugų apimtys
D16: Kriklinių, Pasvalio girininkijos | E16: Linkuvos girininkija 2 | F16: Būginių girininkija 2 | G16: Spalviškių girininkija 2 | H16: Latvelių girininkija 2 | I16: Latvelių, Spalviškių, Būginių girininkijos
A17: Pirkimo objekto dalies numeris | D17: 22 | E17: 23 | F17: 24 | G17: 25 | H17: 26 | I17: 27
A18: 8. | B18: Miško atkūrimas, įveisimas ir atsodinimas (medelių ir krūmų sodinimas) | C18: tūkst. vnt. | D18: 110 | E18: 0 | F18: 0 | G18: 0 | H18: 0 | I18: 0
A19: 9. | B19: Želdinių, žėlinių apsauga nuo kanopinių žvėrių bei vabzdžių daromos žalos | C19: tūkst. vnt. | D19: 0 | E19: 135 | F19: 200 | G19: 140 | H19: 130 | I19: 0
A20: 10. | B20: Želdinių, žėlinių ir medelių kamienų apsauga nuo kanopinių žvėrių daromos žalos | C20: tūkst. vnt. | D20: 0 | E20: 0 | F20: 0 | G20: 0 | H20: 0 | I20: 5
D21: =+D18*178+D19*27+D20*390 -> 19580 | E21: =+E18*178+E19*27+E20*390 -> 3645 | F21: 5400 | G21: 3780 | H21: 3510 | I21: 1950
D22: =+D21*3*1.3 -> 76362 | E22: =+E21*3*1.3 -> 14215.5 | F22: 21060 | G22: 14742 | H22: 13689 | I22: 7605
A24: 4. | B24: Želdinių, žėlinių apsauga nuo kanopinių žvėrių daromos žalos, tveriant vielos tinklo tvorą | C24: Preliminarios paslaugų apimtys
C25: Mato vnt. | D25: Biržų RP teritorija 2
A26: Pirkimo objekto dalies numeris | D26: 28
A27: 11. | B27: Želdinių, žėlinių apsauga nuo kanopinių žvėrių daromos žalos, tveriant vielos tinklo tvorą | C27: m | D27: 4500
D28: =+D27*1.85 -> 8325
D29: =+D28*3*1.3 -> 32467.5
A31: 6. | B31: Šiukšlių rinkimo paslaugos | C31: Preliminarios paslaugų apimtys
C32: Mato vnt. | D32: Biržų RP teritorija 3
A33: Pirkimo objekto dalies numeris | D33: 29
A34: 12. | B34: Šiukšlių rinkimo paslaugos | C34: val. | D34: 350
D35: =+D34*10 -> 3500
D36: =+D35*3*1.3 -> 13650

Sheet Druskininkai
A1: VĮ Valstybinių miškų urėdijos Druskininkų regioninio padalinio informacija apie perkamus rangos paslaugų kiekius 2025 m.
A2: Eil. | B2: Paslaugų grupės ir paslaugų pavadinimai | C2: Preliminarios paslaugų apimtys
A3: 1 | B3: Želdaviečių paruošimas miškų sodinimui, želdinių ir žėlinių priežiūra, jaunuolynų ugdymas, griovių šlaitų ir pagriovių, pakelių, kvartalinių ir ribinių linijų priežiūra | C3: Mato vnt. | D3: Krosnos girininkija
A4: Pirkimo objekto dalies numeris | D4: 30
A5: 1. | B5: Želdavietės paruošimas miško sodmenų sodinimui šalinant nepageidaujamus medžius, krūmus, žolinę augmeniją | C5: ha | D5: 15
A6: 2. | B6: Medynų ir krūmynų pertvarkymo kirtimai šalinant nepageidaujamus medžius, krūmus, žolinę augmeniją
A7: 3. | B7: Miško želdinių ir žėlinių priežiūra šalinant žabus ir žolinę augmeniją | C7: ha
A8: 4. | B8: Jaunuolynų ugdymas ir/ar retinimo kirtimai, negaminant likvidinės medienos | C8: ha
A9: 5. | B9: Griovių šlaitų ir pagriovių priežiūra | C9: ha
A10: 6. | B10: Pakelių priežiūra | C10: km
A11: 7. | B11: kvartalinių ir ribinių linijų priežūra | C11: km
D12: =+D5*301+D7*263+D8*299+D9*301+D10*53+D11*126+D6*301 -> 4515
D13: =+D12*3*1.3 -> 17608.5
A15: 4. | B15: Želdinių, žėlinių apsauga nuo kanopinių žvėrių daromos žalos, tveriant vielos tinklo tvorą | C15: Preliminarios paslaugų apimtys
C16: Mato vnt. | D16: Grūto ir Latežerio girininkijos | E16: Leipalingio ir Krosnos girininkija | F16: Kapčiamiesčio girininkija
A17: Pirkimo objekto dalies numeris | D17: 31 | E17: 32 | F17: 33
A18: 11. | B18: Želdinių, žėlinių apsauga nuo kanopinių žvėrių daromos žalos, tveriant vielos tinklo tvorą | C18: m | D18: 4500 | E18: 5000 | F18: 8000
D19: =+D18*1.85 -> 8325 | E19: =+E18*1.85 -> 9250 | F19: 14800
D20: =+D19*3*1.3 -> 32467.5 | E20: =+E19*3*1.3 -> 36075 | F20: 57720

Sheet Dubrava
A1: VĮ Valstybinių miškų urėdijos Dubravos regioninio padalinio informacija apie perkamus rangos paslaugų kiekius 2025 metams
A2: 3. | B2: Miško sodmenų sodinimas, želdinių ir žėlinių medelių ir jų liemenų apsauga nuo kanopinių žvėrių bei vabzdžių daromos žalos | C2: Mato vnt. | D2: Preliminarios paslaugų apimtys
D3: Sitkūnų girininkija | E3: Padauguvos girininkija | F3: Upninkų girininkija | G3: Karmėlavos girininkija
A4: Pirkimo objekto dalies numeris | D4: 34 | E4: 35 | F4: 36 | G4: 37
A5: 8. | B5: Miško atkūrimas, įveisimas ir atsodinimas (medelių ir krūmų sodinimas) | C5: tūkst. vnt.
A6: 9. | B6: Želdinių, žėlinių apsauga nuo kanopinių žvėrių bei vabzdžių daromos žalos | C6: tūkst. vnt. | D6: 300 | E6: 210 | F6: 150 | G6: 150
A7: 10. | B7: Želdinių, žėlinių ir medelių kamienų apsauga nuo kanopinių žvėrių daromos žalos | C7: tūkst. vnt.
D8: =+D5*178+D6*27+D7*390 -> 8100 | E8: =+E5*178+E6*27+E7*390 -> 5670 | F8: 4050 | G8: =+G5*178+G6*27+G7*390 -> 4050
D9: =+D8*3*1.3 -> 31590 | E9: =+E8*3*1.3 -> 22113 | F9: 15795 | G9: =+G8*3*1.3 -> 15795
A11: 6. | B11: Šiukšlių rinkimo paslaugos | C11: Preliminarios paslaugų apimtys
C12: Mato vnt. | D12: Dubravos RP teritorija
A13: Pirkimo objekto dalies numeris | D13: 38
A14: 12. | B14: Šiukšlių rinkimo paslaugos | C14: val. | D14: 420
D15: =+D14*10 -> 4200
D16: =+D15*3*1.3 -> 16380

Sheet Ignalina
A1: VĮ Valstybinių miškų urėdijos Ignalinos regioninio padalinio informacija apie perkamus rangos paslaugų kiekius 2025 metams
A2: Eil. | B2: Paslaugų grupės ir paslaugų pavadinimai | C2: Preliminarios paslaugų apimtys
A3: 1 | B3: Želdaviečių paruošimas miškų sodinimui, želdinių ir žėlinių priežiūra, jaunuolynų ugdymas, griovių šlaitų ir pagriovių, pakelių, kvartalinių ir ribinių linijų priežiūra | C3: Mato vnt. | D3: Dūkšto girininkija
A4: Pirkimo objekto dalies numeris | D4: 39
A5: 1. | B5: Želdavietės paruošimas miško sodmenų sodinimui šalinant nepageidaujamus medžius, krūmus, žolinę augmeniją | C5: ha
A6: 2. | B6: Medynų ir krūmynų pertvarkymo kirtimai šalinant nepageidaujamus medžius, krūmus, žolinę augmeniją | C6: ha
A7: 3. | B7: Miško želdinių ir žėlinių priežiūra šalinant žabus ir žolinę augmeniją | C7: ha | D7: 40
A8: 4. | B8: Jaunuolynų ugdymas ir/ar retinimo kirtimai, negaminant likvidinės medienos | C8: ha
A9: 5. | B9: Griovių šlaitų ir pagriovių priežiūra | C9: ha
A10: 6. | B10: Pakelių priežiūra | C10: km
A11: 7. | B11: kvartalinių ir ribinių linijų priežūra | C11: km
D12: =+D5*301+D7*263+D8*299+D9*301+D10*53+D11*126+D6*301 -> 10520
D13: =+D12*3*1.3 -> 41028
A15: 4. | B15: Želdinių, žėlinių apsauga nuo kanopinių žvėrių daromos žalos, tveriant vielos tinklo tvorą | C15: Preliminarios paslaugų apimtys
C16: Mato vnt. | D16: Ignalinos RP
A17: Pirkimo objekto dalies numeris | D17: 40
A18: 11. | B18: Želdinių, žėlinių apsauga nuo kanopinių žvėrių daromos žalos, tveriant vielos tinklo tvorą | C18: m | D18: 3000
D19: =+D18*1.85 -> 5550
D20: =+D19*3*1.3 -> 21645

Sheet Jurbarkas
A1: VĮ Valstybinių miškų urėdijos Jurbarko regioninio padalinio informacija apie perkamus rangos paslaugų kiekius 2025 metams
A2: Eil. | B2: Paslaugų grupės ir paslaugų pavadinimai | C2: Preliminarios paslaugų apimtys
A3: 1 | B3: Želdaviečių paruošimas miškų sodinimui, želdinių ir žėlinių priežiūra, jaunuolynų ugdymas, griovių šlaitų ir pagriovių, pakelių, kvartalinių ir ribinių linijų priežiūra | C3: Mato vnt. | D3: Kalvelių girininkija | E3: Pašvenčio girininkija | F3: Balandinės girininkija
A4: Pirkimo objekto dalies numeris | D4: 41 | E4: 42 | F4: 43
A5: 1. | B5: Želdavietės paruošimas miško sodmenų sodinimui šalinant nepageidaujamus medžius, krūmus, žolinę augmeniją | C5: ha | D5: 0 | E5: 5.3 | F5: 0
A6: 2. | B6: Medynų ir krūmynų pertvarkymo kirtimai šalinant nepageidaujamus medžius, krūmus, žolinę augmeniją | C6: ha | D6: 0 | E6: 0 | F6: 0
A7: 3. | B7: Miško želdinių ir žėlinių priežiūra šalinant žabus ir žolinę augmeniją | C7: ha | D7: 154.1 | E7: 50 | F7: 0
A8: 4. | B8: Jaunuolynų ugdymas ir/ar retinimo kirtimai, negaminant likvidinės medienos | C8: ha | D8: 21 | E8: 15 | F8: 0
A9: 5. | B9: Griovių šlaitų ir pagriovių priežiūra | C9: ha | D9: 4 | E9: 3.4 | F9: 0
A10: 6. | B10: Pakelių priežiūra | C10: km | D10: 0 | E10: 0 | F10: 0
A11: 7. | B11: kvartalinių ir ribinių linijų priežūra | C11: km | D11: 20 | E11: 0 | F11: 10
D12: =+D5*301+D7*263+D8*299+D9*301+D10*53+D11*126+D6*301 -> 50531.3 | E12: =+E5*301+E7*263+E8*299+E9*301+E10*53+E11*126 -> 20253.7 | F12: 1260
D13: =+D12*3*1.3 -> 197072.07 | E13: =+E12*3*1.3 -> 78989.43 | F13: 4914

Sheet Kazlų Rūda
A1: VĮ Valstybinių miškų urėdijos Kazlų Rūdos regioninio padalinio informacija apie perkamus rangos paslaugų kiekius 2025 metams
A2: Eil. | B2: Paslaugų grupės ir paslaugų pavadinimai | C2: Preliminarios paslaugų apimtys
A3: 1 | B3: Želdaviečių paruošimas miškų sodinimui, želdinių ir žėlinių priežiūra, jaunuolynų ugdymas, griovių šlaitų ir pagriovių, pakelių, kvartalinių ir ribinių linijų priežiūra | C3: Mato vnt. | D3: Agurkiškės girininkija | E3: Bagotosios girininkija | F3: Jūrės girininkija | G3: Kalvarijos girininkija | H3: Kazlų Rūdos girininkija | I3: Novos girininkija | J3: Pajevonio girininkija | K3: Varnabūdės girininkija
A4: Pirkimo objekto dalies numeris | D4: 44 | E4: 45 | F4: 46 | G4: 47 | H4: 48 | I4: 49 | J4: 50 | K4: 51
A5: 1. | B5: Želdavietės paruošimas miško sodmenų sodinimui šalinant nepageidaujamus medžius, krūmus, žolinę augmeniją | C5: ha
A6: 2. | B6: Medynų ir krūmynų pertvarkymo kirtimai šalinant nepageidaujamus medžius, krūmus, žolinę augmeniją
A7: 3. | B7: Miško želdinių ir žėlinių priežiūra šalinant žabus ir žolinę augmeniją | C7: ha
A8: 4. | B8: Jaunuolynų ugdymas ir/ar retinimo kirtimai, negaminant likvidinės medienos | C8: ha | D8: 9 | E8: 41 | F8: 16 | G8: 43 | H8: 15 | I8: 18.5 | J8: 29 | K8: 27
A9: 5. | B9: Griovių šlaitų ir pagriovių priežiūra | C9: ha
A10: 6. | B10: Pakelių priežiūra | C10: km
A11: 7. | B11: kvartalinių ir ribinių linijų priežūra | C11: km
D12: =+D5*301+D7*263+D8*299+D9*301+D10*53+D11*126+D6*301 -> 2691 | E12: =+E5*301+E7*263+E8*299+E9*301+E10*53+E11*126 -> 12259 | F12: 4784 | G12: 12857 | H12: 4485 | I12: 5531.5 | J12: 8671 | K12: 8073
D13: =+D12*3*1.3 -> 10494.9 | E13: =+E12*3*1.3 -> 47810.1 | F13: 18657.6 | G13: 50142.3 | H13: 17491.5 | I13: 21572.85 | J13: 33816.9 | K13: 31484.7
A15: 6. | B15: Šiukšlių rinkimo paslaugos | C15: Preliminarios paslaugų apimtys
C16: Mato vnt. | D16: Kazlų Rūdos RP teritorija
A17: Pirkimo objekto dalies numeris | D17: 52
A18: 12. | B18: Šiukšlių rinkimo paslaugos | C18: val. | D18: 370
D19: =+D18*10 -> 3700
D20: =+D19*3*1.3 -> 14430

Sheet Kretinga
A1: VĮ Valstybinių miškų urėdijos Kretingos regioninio padalinio informacija apie perkamus rangos paslaugų kiekius 2025 metams
A2: Eil. | B2: Paslaugų grupės ir paslaugų pavadinimai | C2: Preliminarios paslaugų apimtys
A3: 1 | B3: Želdaviečių paruošimas miškų sodinimui, želdinių ir žėlinių priežiūra, jaunuolynų ugdymas, griovių šlaitų ir pagriovių, pakelių, kvartalinių ir ribinių linijų priežiūra | C3: Mato vnt. | D3: Juodkrantės, Nidos girininkijos 1
A4: Pirkimo objekto dalies numeris | D4: 53
A5: 1. | B5: Želdavietės paruošimas miško sodmenų sodinimui šalinant nepageidaujamus medžius, krūmus, žolinę augmeniją | C5: ha
A6: 2. | B6: Medynų ir krūmynų pertvarkymo kirtimai šalinant nepageidaujamus medžius, krūmus, žolinę augmeniją | C6: ha | D6: 30
A7: 3. | B7: Miško želdinių ir žėlinių priežiūra šalinant žabus ir žolinę augmeniją | C7: ha
A8: 4. | B8: Jaunuolynų ugdymas ir/ar retinimo kirtimai, negaminant likvidinės medienos | C8: ha
A9: 5. | B9: Griovių šlaitų ir pagriovių priežiūra | C9: ha
A10: 6. | B10: Pakelių priežiūra | C10: km
A11: 7. | B11: kvartalinių ir ribinių linijų priežūra | C11: km
D12: =+D5*301+D7*263+D8*299+D9*301+D10*53+D11*126+D6*301 -> 9030
D13: =+D12*3*1.3 -> 35217
A15: 3. | B15: Miško sodmenų sodinimas, želdinių ir žėlinių medelių ir jų liemenų apsauga nuo kanopinių žvėrių bei vabzdžių daromos žalos | C15: Preliminarios paslaugų apimtys
C16: Mato vnt. | D16: Juodkrantės, Nidos girininkijos 2 | E16: Juodkrantės, Nidos girininkijos 3 | F16: Juodkrantės, Nidos girininkijos 4
A17: Pirkimo objekto dalies numeris | D17: 54 | E17: 55 | F17: 56
A18: 8. | B18: Miško atkūrimas, įveisimas ir atsodinimas (medelių ir krūmų sodinimas) | C18: tūkst. vnt. | D18: 30 | E18: 15 | F18: 15
A19: 9. | B19: Želdinių, žėlinių apsauga nuo kanopinių žvėrių bei vabzdžių daromos žalos | C19: tūkst. vnt.
A20: 10. | B20: Želdinių, žėlinių ir medelių kamienų apsauga nuo kanopinių žvėrių daromos žalos | C20: tūkst. vnt.
D21: =+D18*178+D19*27+D20*390 -> 5340 | E21: =+E18*178+E19*27+E20*390 -> 2670 | F21: 2670
D22: =+D21*3*1.3 -> 20826 | E22: =+E21*3*1.3 -> 10413 | F22: 10413
A24: 6. | B24: Šiukšlių rinkimo paslaugos | C24: Preliminarios paslaugų apimtys
C25: Mato vnt. | D25: Šernų girininkija
A26: Pirkimo objekto dalies numeris | D26: 57
A27: 12. | B27: Šiukšlių rinkimo paslaugos | C27: val. | D27: 300
D28: =+D27*10 -> 3000
D29: =+D28*3*1.3 -> 11700

Sheet Kuršėnai
A1: VĮ Valstybinių miškų urėdijos Kuršėnų regioninio padalinio informacija apie perkamus rangos paslaugų kiekius 2025 metams
A2: Eil. | B2: Paslaugų grupės ir paslaugų pavadinimai | C2: Preliminarios paslaugų apimtys
A3: 1 | B3: Želdaviečių paruošimas miškų sodinimui, želdinių ir žėlinių priežiūra, jaunuolynų ugdymas, griovių šlaitų ir pagriovių, pakelių, kvartalinių ir ribinių linijų priežiūra | C3: Mato vnt. | D3: Meškuičių girininkija | E3: Šaukėnų, Paežerių girininkijos
A4: Pirkimo objekto dalies numeris | D4: 58 | E4: 59
A5: 1. | B5: Želdavietės paruošimas miško sodmenų sodinimui šalinant nepageidaujamus medžius, krūmus, žolinę augmeniją | C5: ha
A6: 2. | B6: Medynų ir krūmynų pertvarkymo kirtimai šalinant nepageidaujamus medžius, krūmus, žolinę augmeniją
A7: 3. | B7: Miško želdinių ir žėlinių priežiūra šalinant žabus ir žolinę augmeniją | C7: ha | D7: 40 | E7: 80
A8: 4. | B8: Jaunuolynų ugdymas ir/ar retinimo kirtimai, negaminant likvidinės medienos | C8: ha | D8: 5 | E8: 10
A9: 5. | B9: Griovių šlaitų ir pagriovių priežiūra | C9: ha
A10: 6. | B10: Pakelių priežiūra | C10: km
A11: 7. | B11: kvartalinių ir ribinių linijų priežūra | C11: km | D11: 5 | E11: 5
D12: =+D5*301+D7*263+D8*299+D9*301+D10*53+D11*126+D6*301 -> 12645 | E12: =+E5*301+E7*263+E8*299+E9*301+E10*53+E11*126+E6*301 -> 24660
D13: =+D12*3*1.3 -> 49315.5 | E13: =+E12*3*1.3 -> 96174
A15: 3. | B15: Miško sodmenų sodinimas, želdinių ir žėlinių medelių ir jų liemenų apsauga nuo kanopinių žvėrių bei vabzdžių daromos žalos | C15: Preliminarios paslaugų apimtys
C16: Mato vnt. | D16: Pažiužmėlių girininkija
A17: Pirkimo objekto dalies numeris | D17: 60
A18: 8. | B18: Miško atkūrimas, įveisimas ir atsodinimas (medelių ir krūmų sodinimas) | C18: tūkst. vnt. | D18: 20
A19: 9. | B19: Želdinių, žėlinių apsauga nuo kanopinių žvėrių bei vabzdžių daromos žalos | C19: tūkst. vnt. | D19: 100
A20: 10. | B20: Želdinių, žėlinių ir medelių kamienų apsauga nuo kanopinių žvėrių daromos žalos | C20: tūkst. vnt. | D20: 6
D21: =+D18*178+D19*27+D20*390 -> 8600
D22: =+D21*3*1.3 -> 33540
A24: 4. | B24: Želdinių, žėlinių apsauga nuo kanopinių žvėrių daromos žalos, tveriant vielos tinklo tvorą | C24: Preliminarios paslaugų apimtys
C25: Mato vnt. | D25: Kuršėnų RP 1
A26: Pirkimo objekto dalies numeris | D26: 61
A27: 11. | B27: Želdinių, žėlinių apsauga nuo kanopinių žvėrių daromos žalos, tveriant vielos tinklo tvorą | C27: m | D27: 4000
D28: =+D27*1.85 -> 7400
D29: =+D28*3*1.3 -> 28860
A31: 6. | B31: Šiukšlių rinkimo paslaugos | C31: Preliminarios paslaugų apimtys
C32: Mato vnt. | D32: Kuršėnų RP 2
A33: Pirkimo objekto dalies numeris | D33: 62
A34: 12. | B34: Šiukšlių rinkimo paslaugos | C34: val. | D34: 350
D35: =+D34*10 -> 3500
D36: =+D35*3*1.3 -> 13650

Sheet Panevėžys
A1: VĮ Valstybinių miškų urėdijos Panevėžio regioninio padalinio informacija apie perkamus rangos paslaugų kiekius 2025 metams
A2: Eil. | B2: Paslaugų grupės ir paslaugų pavadinimai | C2: Mato vnt. | D2: Preliminarios paslaugų apimtys
A3: 1 | B3: Želdaviečių paruošimas miškų sodinimui, želdinių ir žėlinių priežiūra, jaunuolynų ugdymas, griovių šlaitų ir pagriovių, pakelių, kvartalinių ir ribinių linijų priežiūra | D3: Rozalimo girininkija
A4: Pirkimo objekto dalies numeris | D4: 63
A5: 1. | B5: Želdavietės paruošimas miško sodmenų sodinimui šalinant nepageidaujamus medžius, krūmus, žolinę augmeniją | C5: ha | D5: 0
A6: 2. | B6: Medynų ir krūmynų pertvarkymo kirtimai šalinant nepageidaujamus medžius, krūmus, žolinę augmeniją | D6: 0
A7: 3. | B7: Miško želdinių ir žėlinių priežiūra šalinant žabus ir žolinę augmeniją | C7: ha | D7: 45
A8: 4. | B8: Jaunuolynų ugdymas ir/ar retinimo kirtimai, negaminant likvidinės medienos | C8: ha | D8: 35
A9: 5. | B9: Griovių šlaitų ir pagriovių priežiūra | C9: ha | D9: 1
A10: 6. | B10: Pakelių priežiūra | C10: km | D10: 0
A11: 7. | B11: kvartalinių ir ribinių linijų priežūra | C11: km | D11: 10
D12: =+D5*301+D7*263+D8*299+D9*301+D10*53+D11*126+D6*301 -> 23861
D13: =+D12*3*1.3 -> 93057.9
A15: 6 | B15: Šiukšlių rinkimo paslaugos | C15: Mato vnt. | D15: Preliminarios paslaugų apimtys
D16: Panevėžio RP
A17: Pirkimo objekto dalies numeris | D17: 64
A18: 11. | B18: Šiukšlių rinkimo paslaugos | C18: val | D18: 600
D19: =+D18*10 -> 6000
D20: =+D19*3*1.3 -> 23400

Sheet Prienai
A1: VĮ Valstybinių miškų urėdijos Prienų regioninio padalinio informacija apie perkamus rangos paslaugų kiekius 2025 metams
A2: 2 | B2: Želdavietės paruošimas miško sodmenų sodinimui cheminiu būdu pašalinant nepageidaujamą augmeniją | C2: Preliminarios paslaugų apimtys
C3: Mato vnt. | D3: Prienų RP 1
A4: Pirkimo objekto dalies numeris | D4: 65
A5: 7. | B5: Želdavietės paruošimas miško sodmenų sodinimui cheminiu būdu pašalinant nepageidaujamą augmeniją | C5: ha | D5: 30
D6: =+D5*111 -> 3330
D7: =+D6*3*1.3 -> 12987
A9: 6 | B9: Šiukšlių rinkimo paslaugos | C9: Mato vnt. | D9: Preliminarios paslaugų apimtys
D10: Prienų RP 2
A11: Pirkimo objekto dalies numeris | D11: 66
A12: 11. | B12: Šiukšlių rinkimo paslaugos | C12: val | D12: 550
D13: =+D12*10 -> 5500
D14: =+D13*3*1.3 -> 21450

Sheet Radviliškis
A1: VĮ Valstybinių miškų urėdijos Radviliškio regioninio padalinio informacija apie perkamus rangos paslaugų kiekius 2025 metams
A2: 3. | B2: Miško sodmenų sodinimas, želdinių ir žėlinių medelių ir jų liemenų apsauga nuo kanopinių žvėrių bei vabzdžių daromos žalos | C2: Preliminarios paslaugų apimtys
C3: Mato vnt. | D3: Baisogalos girininkija | E3: Legečių, Pašušvio, Radviliškio girininkijos
A4: Pirkimo objekto dalies numeris | D4: 67 | E4: 68
A5: 8. | B5: Miško atkūrimas, įveisimas ir atsodinimas (medelių ir krūmų sodinimas) | C5: tūkst. vnt.
A6: 9. | B6: Želdinių, žėlinių apsauga nuo kanopinių žvėrių bei vabzdžių daromos žalos | C6: tūkst. vnt. | D6: 139.5
A7: 10. | B7: Želdinių, žėlinių ir medelių kamienų apsauga nuo kanopinių žvėrių daromos žalos | C7: tūkst. vnt. | D7: 40 | E7: 56.5
D8: =+D5*178+D6*27+D7*390 -> 19366.5 | E8: 22035
D9: =+D8*3*1.3 -> 75529.35 | E9: 85936.5

Sheet Raseiniai
A1: VĮ Valstybinių miškų urėdijos Raseinių regioninio padalinio informacija apie perkamus rangos paslaugų kiekius 2025 metams
A2: 2 | B2: Želdavietės paruošimas miško sodmenų sodinimui cheminiu būdu pašalinant nepageidaujamą augmeniją | C2: Preliminarios paslaugų apimtys
C3: Mato vnt. | D3: Raseinių RP 1
A4: Pirkimo objekto dalies numeris | D4: 69
A5: 7. | B5: Želdavietės paruošimas miško sodmenų sodinimui cheminiu būdu pašalinant nepageidaujamą augmeniją | C5: ha | D5: 93
D6: =+D5*111 -> 10323
D7: =+D6*3*1.3 -> 40259.7
A10: 3. | B10: Miško sodmenų sodinimas, želdinių ir žėlinių medelių ir jų liemenų apsauga nuo kanopinių žvėrių bei vabzdžių daromos žalos | C10: Mato vnt. | D10: Preliminarios paslaugų apimtys
D11: Tytuvėnų girininkija
A12: Pirkimo objekto dalies numeris | D12: 70
A13: 8. | B13: Miško atkūrimas, įveisimas ir atsodinimas (medelių ir krūmų sodinimas) | C13: tūkst. vnt.
A14: 9. | B14: Želdinių, žėlinių apsauga nuo kanopinių žvėrių bei vabzdžių daromos žalos | C14: tūkst. vnt. | D14: 250
A15: 10. | B15: Želdinių, žėlinių ir medelių kamienų apsauga nuo kanopinių žvėrių daromos žalos | C15: tūkst. vnt. | D15: 30
D16: =+D13*178+D14*27+D15*390 -> 18450
D17: =+D16*3*1.3 -> 71955
A20: 5. | B20: Sodmenų transportavimo paslaugos | C20: Mato vnt. | D20: Preliminarios paslaugų apimtys
D21: Viduklės girininkija
A22: Pirkimo objekto dalies numeris | D22: 71
A23: 12. | B23: Sodmenų transportavimo paslaugos | C23: km | D23: 100
D24: =+D23*1.5 -> 150
D25: =+D24*3*1.3 -> 585
A27: 6 | B27: Šiukšlių rinkimo paslaugos | C27: Mato vnt. | D27: Preliminarios paslaugų apimtys
D28: Raseinių RP 2
A29: Pirkimo objekto dalies numeris | D29: 72
A30: 11. | B30: Šiukšlių rinkimo paslaugos | C30: m | D30: 120
D31: =+D30*10 -> 1200
D32: =+D31*3*1.3 -> 4680

Sheet Rokiškis
A1: VĮ Valstybinių miškų urėdijos Rokiškio regioninio padalinio informacija apie perkamus rangos paslaugų kiekius 2025 metams
A2: 3. | B2: Miško sodmenų sodinimas, želdinių ir žėlinių medelių ir jų liemenų apsauga nuo kanopinių žvėrių bei vabzdžių daromos žalos | C2: Mato vnt. | D2: Preliminarios paslaugų apimtys
D3: Kamajų girininkija
A4: Pirkimo objekto dalies numeris | D4: 73
A5: 8. | B5: Miško atkūrimas, įveisimas ir atsodinimas (medelių ir krūmų sodinimas) | C5: tūkst. vnt. | D5: 115
A6: 9. | B6: Želdinių, žėlinių apsauga nuo kanopinių žvėrių bei vabzdžių daromos žalos | C6: tūkst. vnt. | D6: 5
A7: 10. | B7: Želdinių, žėlinių ir medelių kamienų apsauga nuo kanopinių žvėrių daromos žalos | C7: tūkst. vnt. | D7: 1
D8: =+D5*178+D6*27+D7*390 -> 20995
D9: =+D8*3*1.3 -> 81880.5

Sheet Šilutė
A1: VĮ Valstybinių miškų urėdijos Šilutės regioninio padalinio informacija apie perkamus rangos paslaugų kiekius 2025 metams
A2: 6. | B2: Šiukšlių rinkimo paslaugos | C2: Mato vnt. | D2: Preliminarios paslaugų apimtys
D3: Šilutės girininkija
A4: Pirkimo objekto dalies numeris | D4: 74
A5: 12. | B5: Šiukšlių rinkimo paslaugos | C5: val. | D5: 200
D6: =+D5*10 -> 2000
D7: =+D6*3*1.3 -> 7800

Sheet Telšiai
A1: VĮ Valstybinių miškų urėdijos Telšių regioninio padalinio informacija apie perkamus rangos paslaugų kiekius 2025 metams
A2: 3. | B2: Miško sodmenų sodinimas, želdinių ir žėlinių medelių ir jų liemenų apsauga nuo kanopinių žvėrių bei vabzdžių daromos žalos | C2: Mato vnt. | D2: Preliminarios paslaugų apimtys
D3: Rietavo girininkijoje | E3: Kulių girininkijoje
A4: Pirkimo objekto dalies numeris | D4: 75 | E4: 76
A5: 8. | B5: Miško atkūrimas, įveisimas ir atsodinimas (medelių ir krūmų sodinimas) | C5: tūkst. vnt. | D5: 15 | E5: 20
A6: 9. | B6: Želdinių, žėlinių apsauga nuo kanopinių žvėrių bei vabzdžių daromos žalos | C6: tūkst. vnt. | D6: 15 | E6: 30
A7: 10. | B7: Želdinių, žėlinių ir medelių kamienų apsauga nuo kanopinių žvėrių daromos žalos | C7: tūkst. vnt. | D7: 0 | E7: 0
D8: =+D5*178+D6*27+D7*390 -> 3075 | E8: =+E5*178+E6*27+E7*390 -> 4370
D9: =+D8*3*1.3 -> 11992.5 | E9: =+E8*3*1.3 -> 17043
A11: 6. | B11: Šiukšlių rinkimo paslaugos | C11: Preliminarios paslaugų apimtys
C12: Mato vnt. | D12: Telšių RP teritorijoje
A13: Pirkimo objekto dalies numeris | D13: 77
A14: 12. | B14: Šiukšlių rinkimo paslaugos | C14: val. | D14: 223
D15: =+D14*10 -> 2230
D16: =+D15*3*1.3 -> 8697

Sheet Trakai
A1: VĮ Valstybinių miškų urėdijos Trakų regioninio padalinio informacija apie perkamus rangos paslaugų kiekius 2025 metams
A2: 3. | B2: Miško sodmenų sodinimas, želdinių ir žėlinių medelių ir jų liemenų apsauga nuo kanopinių žvėrių bei vabzdžių daromos žalos | C2: Mato vnt. | D2: Preliminarios paslaugų apimtys
D3: Semeliškių girininkija 1 | E3: Semeliškių girininkija 2 | F3: Vievio girininkija 1 | G3: Vievio girininkija 2
A4: Pirkimo objekto dalies numeris | D4: 78 | E4: 79 | F4: 80 | G4: 81
A5: 8. | B5: Miško atkūrimas, įveisimas ir atsodinimas (medelių ir krūmų sodinimas) | C5: tūkst. vnt. | D5: 80 | E5: 80 | F5: 120 | G5: 120
A6: 9. | B6: Želdinių, žėlinių apsauga nuo kanopinių žvėrių bei vabzdžių daromos žalos | C6: tūkst. vnt. | D6: 100 | E6: 100 | F6: 400 | G6: 400
A7: 10. | B7: Želdinių, žėlinių ir medelių kamienų apsauga nuo kanopinių žvėrių daromos žalos | C7: tūkst. vnt. | D7: 5 | E7: 5 | F7: 22 | G7: 22
D8: =+D5*178+D6*27+D7*390 -> 18890 | E8: =+E5*178+E6*27+E7*390 -> 18890 | F8: 40740 | G8: 40740
D9: =+D8*3*1.3 -> 73671 | E9: =+E8*3*1.3 -> 73671 | F9: 158886 | G9: 158886
A11: 5. | B11: Sodmenų transportavimo paslaugos | C11: Preliminarios paslaugų apimtys
C12: Mato vnt. | D12: Trakų RP 1
A13: Pirkimo objekto dalies numeris | D13: 82
A14: 12. | B14: Sodmenų transportavimo paslaugos | C14: km | D14: 5000
D15: =+D14*1.5 -> 7500
D16: =+D15*3*1.3 -> 29250
A18: 6. | B18: Šiukšlių rinkimo paslaugos | C18: Preliminarios paslaugų apimtys
C19: Mato vnt. | D19: Trakų RP 2
A20: Pirkimo objekto dalies numeris | D20: 83
A21: 12. | B21: Šiukšlių rinkimo paslaugos | C21: val. | D21: 805
D22: =+D21*10 -> 8050
D23: =+D22*3*1.3 -> 31395

Sheet Ukmergės
A1: VĮ Valstybinių miškų urėdijos Ukmergės regioninio padalinio informacija apie perkamus rangos paslaugų kiekius 2025 metams
A2: Eil. | B2: Paslaugų grupės ir paslaugų pavadinimai | C2: Preliminarios paslaugų apimtys
A3: 1 | B3: Želdaviečių paruošimas miškų sodinimui, želdinių ir žėlinių priežiūra, jaunuolynų ugdymas, griovių šlaitų ir pagriovių, pakelių, kvartalinių ir ribinių linijų priežiūra | C3: Mato vnt. | D3: Taujėnų girininkija 1 | E3: Taujėnų girininkija 2 | F3: Taujėnų girininkija 3
A4: Pirkimo objekto dalies numeris | D4: 84 | E4: 85 | F4: 86
A5: 1. | B5: Želdavietės paruošimas miško sodmenų sodinimui šalinant nepageidaujamus medžius, krūmus, žolinę augmeniją | C5: ha
A6: 2. | B6: Medynų ir krūmynų pertvarkymo kirtimai šalinant nepageidaujamus medžius, krūmus, žolinę augmeniją
A7: 3. | B7: Miško želdinių ir žėlinių priežiūra šalinant žabus ir žolinę augmeniją | C7: ha | D7: 40 | E7: 70 | F7: 70
A8: 4. | B8: Jaunuolynų ugdymas ir/ar retinimo kirtimai, negaminant likvidinės medienos | C8: ha | D8: 20 | E8: 30 | F8: 30
A9: 5. | B9: Griovių šlaitų ir pagriovių priežiūra | C9: ha | D9: 3 | E9: 6 | F9: 6
A10: 6. | B10: Pakelių priežiūra | C10: km | D10: 3 | E10: 6 | F10: 6
A11: 7. | B11: kvartalinių ir ribinių linijų priežūra | C11: km | D11: 6 | E11: 12 | F11: 12
D12: =+D5*301+D7*263+D8*299+D9*301+D10*53+D11*126+D6*301 -> 18318 | E12: =+E5*301+E7*263+E8*299+E9*301+E10*53+E11*126 -> 31016 | F12: 31016
D13: =+D12*3*1.3 -> 71440.2 | E13: =+E12*3*1.3 -> 120962.4 | F13: 120962.4
A15: 3. | B15: Miško sodmenų sodinimas, želdinių ir žėlinių medelių ir jų liemenų apsauga nuo kanopinių žvėrių bei vabzdžių daromos žalos | C15: Preliminarios paslaugų apimtys
C16: Mato vnt. | D16: Giedraičių girininkija
A17: Pirkimo objekto dalies numeris | D17: 87
A18: 8. | B18: Miško atkūrimas, įveisimas ir atsodinimas (medelių ir krūmų sodinimas) | C18: tūkst. vnt. | D18: 60
A19: 9. | B19: Želdinių, žėlinių apsauga nuo kanopinių žvėrių bei vabzdžių daromos žalos | C19: tūkst. vnt. | D19: 10
A20: 10. | B20: Želdinių, žėlinių ir medelių kamienų apsauga nuo kanopinių žvėrių daromos žalos | C20: tūkst. vnt.
D21: =+D18*178+D19*27+D20*390 -> 10950
D22: =+D21*3*1.3 -> 42705

Sheet Varėna
A1: VĮ Valstybinių miškų urėdijos Varėnos regioninio padalinio informacija apie perkamus rangos paslaugų kiekius 2025 metams
A2: 3. | B2: Miško sodmenų sodinimas, želdinių ir žėlinių medelių ir jų liemenų apsauga nuo kanopinių žvėrių bei vabzdžių daromos žalos | C2: Preliminarios paslaugų apimtys
C3: Mato vnt. | D3: Varėnos RP 1
A4: Pirkimo objekto dalies numeris | D4: 88
A5: 8. | B5: Miško atkūrimas, įveisimas ir atsodinimas (medelių ir krūmų sodinimas) | C5: tūkst. vnt.
A6: 9. | B6: Želdinių, žėlinių apsauga nuo kanopinių žvėrių bei vabzdžių daromos žalos | C6: tūkst. vnt.
A7: 10. | B7: Želdinių, žėlinių ir medelių kamienų apsauga nuo kanopinių žvėrių daromos žalos | C7: tūkst. vnt. | D7: 50
D8: =+D5*178+D6*27+D7*390 -> 19500
D9: =+D8*3*1.3 -> 76050
A11: 4. | B11: Želdinių, žėlinių apsauga nuo kanopinių žvėrių daromos žalos, tveriant vielos tinklo tvorą | C11: Preliminarios paslaugų apimtys
C12: Mato vnt. | D12: Varėnos RP 2
A13: Pirkimo objekto dalies numeris | D13: 89
A14: 11. | B14: Želdinių, žėlinių apsauga nuo kanopinių žvėrių daromos žalos, tveriant vielos tinklo tvorą | C14: m | D14: 2000
D15: =+D14*1.85 -> 3700
D16: =+D15*3*1.3 -> 14430
